bitfinex/quotes_BTCUSD_20260127
["timestamp","ask_amount","ask_price","bid_price","bid_amount"]
[1769541250107,0.20774671,88266.0,88248.0,0.196289]
[1769541250319,0.20774671,88266.0,88250.0,0.27019396]
[1769541250575,0.20774671,88266.0,88250.0,0.26824138]
[1769541250784,0.20774671,88266.0,88250.0,0.25457328]
[1769541251002,0.20774671,88266.0,88250.0,0.25066809]
[1769541253210,0.20774671,88266.0,88250.0,0.17673049]
[1769541253440,0.00916975,88250.0,88247.0,0.00013897]
[1769541253966,0.27206565,88261.0,88247.0,0.00013897]
[1769541254186,0.27206565,88261.0,88243.0,0.14114728]
[1769541254388,0.27220459,88261.0,88243.0,0.14114728]
[1769541254946,0.27220459,88261.0,88244.0,0.02470728]
[1769541255286,0.27220459,88261.0,88245.0,0.196289]
[1769541255287,0.04988068,88260.0,88245.0,0.196289]
[1769541255483,0.04988068,88260.0,88245.0,0.22099628]
[1769541258500,0.25762739,88260.0,88245.0,0.02470728]
[1769541258943,0.31427832,88260.0,88245.0,0.02470728]
[1769541259151,0.05665438,88255.0,88243.0,0.11644]
[1769541259350,0.20774671,88257.0,88243.0,0.11644]
[1769541261535,0.32007464,88260.0,88243.0,0.11644]
[1769541261536,0.04988068,88260.0,88243.0,0.11644]
[1769541261743,0.04988068,88260.0,88244.0,0.22099628]
[1769541262969,0.04988068,88258.0,88244.0,0.196289]
[1769541263172,0.04988068,88258.0,88245.0,0.02386248]
[1769541263513,0.04988068,88260.0,88245.0,0.02386248]
[1769541264990,0.07791541,88261.0,88245.0,0.02386248]
[1769541265143,0.04988068,88260.0,88245.0,0.02386248]
[1769541267769,0.05664637,88267.0,88246.0,0.21288857]
[1769541267770,0.05664662,88267.0,88246.0,0.21288857]
[1769541267979,0.05664662,88267.0,88243.0,0.11644]
[1769541267980,0.04988068,88260.0,88249.0,0.02325167]
[1769541268146,0.04988068,88260.0,88250.0,0.021299]
[1769541269358,0.04988068,88260.0,88251.0,0.20898326]
[1769541269571,0.04988068,88260.0,88251.0,0.22051882]
[1769541269741,0.04988068,88260.0,88251.0,0.21075479]
[1769541269937,0.00010498,88267.0,88251.0,0.1777385]
[1769541270138,0.04988068,88260.0,88252.0,0.01153333]
[1769541270360,0.04988068,88260.0,88252.0,0.00372056]
[1769541270566,0.04988068,88260.0,88251.0,0.21288857]
[1769541270768,0.04988068,88260.0,88251.0,0.20657186]
[1769541271107,0.00010498,88267.0,88260.0,0.01]
[1769541271465,0.00010498,88267.0,88255.0,0.02325167]
[1769541273047,0.05663931,88278.0,88243.0,0.11644]
[1769541273048,0.09059288,88284.0,88260.0,0.21288857]
[1769541273177,0.0004,88287.0,88257.0,0.27020516]
[1769541273178,0.02485814,88286.0,88272.0,0.00072527]
[1769541273381,0.02485814,88286.0,88269.0,0.21288857]
[1769541273382,0.0002504,88283.0,88269.0,0.21288857]
[1769541273792,0.0002504,88283.0,88269.0,0.23614024]
[1769541273986,0.0002504,88283.0,88271.0,0.21288857]
[1769541274196,0.0002504,88283.0,88271.0,0.20690028]
[1769541274374,0.0002504,88283.0,88271.0,0.20290747]
[1769541274577,0.0002504,88283.0,88271.0,0.19891403]
[1769541274778,0.0002504,88283.0,88271.0,0.19392133]
[1769541274998,0.0002504,88283.0,88271.0,0.18992645]
[1769541275199,0.0002504,88283.0,88271.0,0.18393293]
[1769541275404,0.0002504,88283.0,88271.0,0.17893723]
[1769541275705,0.0002504,88283.0,88271.0,0.17493995]
[1769541275914,0.0002504,88283.0,88271.0,0.17094203]
[1769541276113,0.0002504,88283.0,88271.0,0.16638467]
[1769541276280,0.0002504,88283.0,88271.0,0.15897229]
[1769541276493,0.0002504,88283.0,88271.0,0.14970538]
[1769541276695,0.0002504,88283.0,88271.0,0.14229069]
[1769541276877,0.0002504,88283.0,88271.0,0.136729]
[1769541278195,0.0002504,88283.0,88271.0,0.13719277]
[1769541280299,0.0002504,88283.0,88271.0,0.16044444]
[1769541280430,0.0002504,88283.0,88271.0,0.14931975]
[1769541280638,0.0002504,88283.0,88271.0,0.1381935]
[1769541280847,0.0002504,88283.0,88271.0,0.12892043]
[1769541281046,0.0002504,88283.0,88271.0,0.10195923]
[1769541281270,0.0002504,88283.0,88274.0,0.02325167]
[1769541281477,0.0002504,88283.0,88275.0,0.20361368]
[1769541281686,0.0002504,88283.0,88275.0,0.19433652]
[1769541281894,0.0002504,88283.0,88275.0,0.18320044]
[1769541282099,0.0002504,88283.0,88275.0,0.17577427]
[1769541282300,0.0002504,88283.0,88275.0,0.16463181]
[1769541282517,0.0002504,88283.0,88275.0,0.15720137]
[1769541282846,0.0002504,88283.0,88275.0,0.1423354]
[1769541283017,0.0002504,88283.0,88275.0,0.13689591]
[1769541283210,0.0002504,88283.0,88275.0,0.12743121]
[1769541283413,0.0002504,88283.0,88275.0,0.11762256]
[1769541283640,0.0002504,88283.0,88275.0,0.10584921]
[1769541283974,0.0002504,88283.0,88275.0,0.09603561]
[1769541284118,0.0002504,88283.0,88275.0,0.08621976]
[1769541284317,0.04988068,88286.0,88275.0,0.07836567]
[1769541284532,0.04988068,88290.0,88276.0,0.01966848]
[1769541284726,0.04988068,88290.0,88274.0,0.11644]
[1769541284727,0.04988068,88290.0,88277.0,0.20841804]
[1769541284928,0.04988068,88290.0,88277.0,0.22185086]
[1769541285167,0.04988068,88290.0,88279.0,0.21092461]
[1769541285373,0.04988068,88290.0,88279.0,0.20503256]
[1769541285529,0.04988068,88290.0,88279.0,0.19521118]
[1769541285732,0.04988068,88290.0,88279.0,0.18931753]
[1769541286511,0.04988068,88290.0,88278.0,0.01735994]
[1769541286714,0.04988068,88290.0,88274.0,0.11644]
[1769541287054,0.27020516,88290.0,88275.0,0.21288857]
[1769541287645,0.04988068,88289.0,88275.0,0.20895912]
[1769541287845,0.07473882,88289.0,88275.0,0.19913531]
[1769541288142,0.07473882,88289.0,88275.0,0.18341615]
[1769541288376,0.07473882,88289.0,88275.0,0.17162578]
[1769541288676,0.07473882,88289.0,88275.0,0.16324904]
[1769541288972,0.07473882,88289.0,88275.0,0.15671782]
[1769541289106,0.07473882,88289.0,88275.0,0.15127477]
[1769541289309,0.07473882,88289.0,88275.0,0.14474269]
[1769541289545,0.07473882,88289.0,88275.0,0.13929892]
[1769541289764,0.07473882,88289.0,88275.0,0.13385482]
[1769541289974,0.07473882,88289.0,88275.0,0.12949931]
[1769541290170,0.07473882,88289.0,88275.0,0.12296565]
[1769541290346,0.07473882,88289.0,88275.0,0.11752057]
[1769541290553,0.07473882,88289.0,88275.0,0.11207516]
[1769541290753,0.07473882,88289.0,88275.0,0.10662943]
[1769541290957,0.07473882,88289.0,88275.0,0.10009411]
[1769541291156,0.07473882,88289.0,88275.0,0.09464764]
[1769541291378,0.07473882,88289.0,88275.0,0.09028624]
[1769541291540,0.07473882,88289.0,88275.0,0.08373781]
[1769541291910,0.02485814,88288.0,88274.0,0.11644]
[1769541301324,0.21454469,88287.0,88271.0,0.00046377]
[1769541301473,0.21454469,88281.0,88271.0,0.00046377]
[1769541301677,0.02316656,88279.0,88271.0,0.00046377]
[1769541301916,0.02316656,88276.0,88255.0,0.1165892]
[1769541302175,0.27020516,88281.0,88256.0,0.23565223]
[1769541302176,0.02316656,88274.0,88256.0,0.23565223]
[1769541302945,0.09059288,88299.0,88274.0,0.00010498]
[1769541303147,0.04988068,88290.0,88280.0,0.27020516]
[1769541303672,0.1164,88297.0,88280.0,0.27020516]
[1769541303825,0.04988068,88290.0,88280.0,0.48269641]
[1769541304027,0.1164,88297.0,88280.0,0.48269641]
[1769541304233,0.1164,88297.0,88282.0,0.02269707]
[1769541304234,0.293168,88293.0,88282.0,0.02269707]
[1769541304501,0.293168,88293.0,88280.0,0.27020516]
[1769541304502,0.287026,88294.0,88285.0,0.21052124]
[1769541304703,0.287026,88294.0,88285.0,0.20264073]
[1769541304704,0.249924,88294.0,88285.0,0.20264073]
[1769541304834,0.04988068,88290.0,88280.0,0.27020516]
[1769541305033,0.04988068,88290.0,88281.0,0.21249125]
[1769541305238,0.04988068,88290.0,88281.0,0.2026371]
[1769541305439,0.04988068,88290.0,88281.0,0.19672437]
[1769541305640,0.04992704,88290.0,88281.0,0.19672437]
[1769541306026,0.04992704,88290.0,88280.0,0.02269707]
[1769541306234,0.04988068,88289.0,88277.0,0.21249125]
[1769541306439,0.04988068,88289.0,88273.0,0.23518832]
[1769541306816,0.07304724,88289.0,88273.0,0.23518832]
[1769541308493,0.02316656,88289.0,88273.0,0.23518832]
[1769541309409,0.02316656,88289.0,88273.0,0.23454832]
[1769541309628,4.636e-05,88290.0,88273.0,0.21249125]
[1769541309827,4.636e-05,88290.0,88275.0,0.23518832]
[1769541310237,4.636e-05,88290.0,88280.0,0.27020516]
[1769541312503,4.636e-05,88290.0,88275.0,0.23518832]
[1769541312714,4.636e-05,88290.0,88280.0,0.27020516]
[1769541314047,4.636e-05,88290.0,88281.0,0.21249125]
[1769541314696,4.636e-05,88290.0,88280.0,0.27020516]
[1769541314892,4.636e-05,88290.0,88276.0,0.21249125]
[1769541315279,0.04988068,88289.0,88276.0,0.21249125]
[1769541316877,0.02316656,88288.0,88271.0,0.21249125]
[1769541318792,0.02316656,88288.0,88271.0,0.23518832]
[1769541320189,4.636e-05,88290.0,88279.0,0.21249125]
[1769541321762,4.636e-05,88290.0,88280.0,0.2699751]
[1769541322619,4.636e-05,88290.0,88265.0,0.1164]
[1769541322620,0.04988068,88305.0,88292.0,0.2699751]
[1769541322782,0.04988068,88305.0,88292.0,0.27043901]
[1769541322985,0.0005892,88306.0,88292.0,0.27043901]
[1769541323187,0.0005892,88306.0,88296.0,0.2699751]
[1769541324467,0.0005892,88306.0,88292.0,0.2012624]
[1769541325284,0.0002,88315.0,88292.0,0.2012624]
[1769541325564,0.0004,88319.0,88306.0,0.19571371]
[1769541325770,0.0002892,88317.0,88307.0,0.02396791]
[1769541325934,0.0002892,88317.0,88301.0,0.19571371]
[1769541326161,0.20399181,88317.0,88301.0,0.19571371]
[1769541326531,0.0002892,88317.0,88302.0,0.02396791]
[1769541326734,0.0001,88317.0,88304.0,0.21968162]
[1769541327158,0.0001,88317.0,88307.0,0.2699751]
[1769541327364,0.0002,88321.0,88307.0,0.2699751]
[1769541327580,0.0002,88321.0,88310.0,0.2699751]
[1769541327801,0.0002,88321.0,88300.0,0.2699751]
[1769541328012,0.20390261,88321.0,88301.0,0.02396791]
[1769541328195,0.22675678,88319.0,88301.0,0.02396791]
[1769541329868,0.20370261,88319.0,88301.0,0.02396791]
[1769541330084,0.02305417,88318.0,88301.0,0.02396791]
[1769541330708,0.02305417,88318.0,88308.0,0.2699751]
[1769541331018,0.0002,88321.0,88308.0,0.2699751]
[1769541331169,0.20370261,88320.0,88308.0,0.2699751]
[1769541333320,0.0002,88321.0,88308.0,0.2699751]
[1769541333901,0.0002,88321.0,88310.0,0.02396791]
[1769541334179,0.0002,88321.0,88313.0,0.19571371]
[1769541334334,0.0002,88321.0,88313.0,0.19177156]
[1769541334541,0.0004,88327.0,88314.0,0.02396791]
[1769541334745,0.0004,88327.0,88318.0,0.19571371]
[1769541335548,0.0004,88327.0,88317.0,0.2699751]
[1769541335803,0.0004,88327.0,88314.0,0.21968162]
[1769541337916,0.0001954,88336.0,88316.0,0.02396791]
[1769541338040,0.0001954,88336.0,88312.0,0.19571371]
[1769541338041,0.02305417,88332.0,88312.0,0.19571371]
[1769541338243,0.22675678,88332.0,88312.0,0.19571371]
[1769541338457,0.22675678,88332.0,88313.0,0.19571371]
[1769541338673,0.22675678,88332.0,88316.0,0.02396791]
[1769541338875,0.22675678,88332.0,88316.0,0.21968162]
[1769541339099,0.22675678,88332.0,88320.0,0.2699751]
[1769541339307,0.02305417,88332.0,88320.0,0.26603306]
[1769541340224,0.02305417,88332.0,88320.0,0.26649697]
[1769541341352,0.0001954,88336.0,88320.0,0.26649697]
[1769541341704,0.20370261,88335.0,88320.0,0.00046391]
[1769541341864,0.20370261,88334.0,88320.0,0.00046391]
[1769541342065,0.02305417,88333.0,88320.0,0.00046391]
[1769541344269,0.02305417,88332.0,88320.0,0.00046391]
[1769541345491,0.02305417,88332.0,88312.0,0.09190515]
[1769541345693,0.20370261,88321.0,88312.0,0.00046483]
[1769541346022,0.02305417,88319.0,88301.0,0.19571371]
[1769541346223,0.02305417,88318.0,88301.0,0.19617857]
[1769541347128,0.11636,88333.0,88318.0,0.00010498]
[1769541347358,0.02305417,88332.0,88311.0,0.02396791]
[1769541347535,0.02418989,88331.0,88312.0,0.18926483]
[1769541347701,0.20483833,88331.0,88312.0,0.18926483]
[1769541347902,0.02305417,88330.0,88312.0,0.18926483]
[1769541348653,0.20370261,88329.0,88312.0,0.18926483]
[1769541348854,0.02305417,88328.0,88312.0,0.18926483]
[1769541351892,0.04988068,88323.0,88303.0,0.02396791]
[1769541352071,0.10649136,88323.0,88305.0,0.21968162]
[1769541352278,0.04988068,88323.0,88305.0,0.21968162]
[1769541352484,0.07293485,88323.0,88305.0,0.21968162]
[1769541353148,0.27663746,88323.0,88305.0,0.21968162]
[1769541354054,0.27663746,88323.0,88306.0,0.21968162]
[1769541354478,0.07293485,88323.0,88306.0,0.21968162]
[1769541354895,0.02428116,88329.0,88307.0,0.02313406]
[1769541355099,0.02428116,88329.0,88311.0,0.02313406]
[1769541355324,0.04988068,88337.0,88311.0,0.2122266]
[1769541355483,0.04988068,88337.0,88310.0,0.2699751]
[1769541355484,0.02541688,88335.0,88314.0,0.02313406]
[1769541355687,0.02541688,88335.0,88317.0,0.2122266]
[1769541356342,0.2699751,88330.0,88317.0,0.2122266]
[1769541358796,0.2699751,88330.0,88317.0,0.20630988]
[1769541358980,0.2699751,88330.0,88317.0,0.19644688]
[1769541359180,0.2699751,88330.0,88317.0,0.18658163]
[1769541359415,0.2699751,88330.0,88317.0,0.17671413]
[1769541359622,0.2699751,88330.0,88316.0,0.02313406]
[1769541359830,0.2699751,88330.0,88316.0,0.23536066]
[1769541360485,0.0001954,88336.0,88321.0,0.2122266]
[1769541360688,0.0001954,88336.0,88325.0,0.21140632]
[1769541360890,0.0001954,88336.0,88327.0,0.2122266]
[1769541361043,0.00113572,88344.0,88326.0,0.02313406]
[1769541361246,0.0001954,88348.0,88335.0,0.2122266]
[1769541361446,0.0001954,88348.0,88339.0,0.23536066]
[1769541361855,0.0001,88356.0,88342.0,0.02313406]
[1769541362193,0.0001,88356.0,88350.0,0.2122266]
[1769541362519,0.0001,88356.0,88350.0,0.21269146]
[1769541362767,0.0001,88356.0,88350.0,0.00046486]
[1769541363313,0.0002561,88356.0,88350.0,0.00046486]
[1769541365069,0.0002301,88361.0,88350.0,0.21269146]
[1769541365269,0.0002301,88361.0,88350.0,0.00046486]
[1769541365476,0.2699751,88360.0,88350.0,0.00046486]
[1769541365683,0.2699751,88360.0,88344.0,0.2122266]
[1769541365878,0.00953514,88348.0,88344.0,0.00046595]
[1769541366345,0.20132801,88346.0,88323.0,0.2122266]
[1769541366558,0.2699751,88340.0,88327.0,0.2122266]
[1769541366739,0.2017931,88346.0,88327.0,0.23536066]
[1769541366885,0.00046509,88346.0,88327.0,0.23536066]
[1769541367084,0.00046509,88346.0,88329.0,0.2122266]
[1769541367295,0.00046509,88346.0,88329.0,0.23536066]
[1769541367745,0.00046509,88346.0,88330.0,0.02313406]
[1769541367945,0.00046509,88346.0,88331.0,0.2122266]
[1769541369137,0.00046509,88346.0,88331.0,0.23536066]
[1769541371241,0.00046509,88346.0,88331.0,0.02313406]
[1769541371483,0.20132801,88345.0,88325.0,0.02313406]
[1769541371690,0.22560917,88345.0,88325.0,0.2122266]
[1769541371899,0.2699751,88340.0,88326.0,0.2122266]
[1769541372954,0.22560917,88345.0,88326.0,0.2122266]
[1769541373176,0.2699751,88340.0,88326.0,0.02313406]
[1769541373346,0.2699751,88340.0,88317.0,0.11632]
[1769541373347,0.20132801,88339.0,88321.0,0.2122266]
[1769541373501,0.20132801,88339.0,88319.0,0.02313406]
[1769541373718,0.20132801,88339.0,88321.0,0.02313406]
[1769541374319,0.20132801,88339.0,88321.0,0.2122266]
[1769541374527,0.20132801,88339.0,88322.0,0.02313406]
[1769541374727,0.29425626,88340.0,88322.0,0.02313406]
[1769541374902,0.20132801,88344.0,88325.0,0.2122266]
[1769541375134,0.20132801,88344.0,88325.0,0.23536066]
[1769541375349,0.00046509,88346.0,88333.0,0.2122266]
[1769541375514,0.00046509,88346.0,88336.0,0.02313406]
[1769541375706,0.00046509,88346.0,88338.0,0.02313406]
[1769541375908,0.00046509,88346.0,88338.0,0.01892971]
[1769541376117,0.00046509,88346.0,88338.0,0.01388449]
[1769541376327,0.00046509,88346.0,88338.0,0.00968014]
[1769541376537,0.00046509,88346.0,88338.0,0.00463491]
[1769541376741,0.37423611,88358.0,88339.0,0.2122266]
[1769541376742,0.02428116,88355.0,88339.0,0.2122266]
[1769541376956,0.04988068,88379.0,88348.0,0.2122266]
[1769541376957,0.20132801,88372.0,88348.0,0.2122266]
[1769541377162,0.06309174,88378.0,88339.0,8.93e-05]
[1769541377163,0.47130311,88370.0,88350.0,0.02313406]
[1769541377401,0.47130311,88370.0,88350.0,0.23536066]
[1769541377604,0.02506811,88369.0,88350.0,0.23536066]
[1769541377813,0.20132801,88366.0,88345.0,0.23536066]
[1769541378139,0.07416184,88365.0,88345.0,0.23536066]
[1769541379091,0.2699751,88360.0,88346.0,0.02313406]
[1769541379288,0.2699751,88360.0,88346.0,0.23536066]
[1769541379491,0.25120869,88365.0,88347.0,0.02313406]
[1769541379691,0.05657839,88373.0,88349.0,0.02313406]
[1769541379888,0.21459111,88371.0,88351.0,0.02313406]
[1769541380109,0.017467,88367.0,88351.0,0.01893016]
[1769541380310,0.22131747,88366.0,88349.0,0.2122266]
[1769541382597,0.00078695,88365.0,88349.0,0.2122266]
[1769541384238,0.00078695,88365.0,88346.0,0.02313406]
[1769541384430,0.01998946,88359.0,88339.0,0.02379719]
[1769541384555,0.19494618,88353.0,88339.0,0.02379719]
[1769541384755,0.19573313,88353.0,88339.0,8.93e-05]
[1769541384990,0.19494618,88348.0,88331.0,0.02370789]
[1769541385236,0.21493564,88348.0,88331.0,0.02417298]
[1769541385586,0.01998946,88348.0,88332.0,0.19930612]
[1769541385786,0.19494618,88347.0,88331.0,0.02417298]
[1769541386634,0.01998946,88348.0,88332.0,0.19930612]
[1769541386970,0.19494618,88353.0,88335.0,0.02370789]
[1769541387091,0.19494618,88353.0,88337.0,0.02370789]
[1769541391022,0.19494618,88353.0,88337.0,0.22301401]
[1769541391225,0.01998946,88355.0,88337.0,0.22301401]
[1769541391777,0.21493564,88355.0,88337.0,0.22301401]
[1769541392758,0.21493564,88355.0,88337.0,0.02370789]
[1769541392972,0.2104377,88354.0,88337.0,0.02370789]
[1769541393172,0.07208258,88354.0,88337.0,0.02370789]
[1769541393444,0.01549152,88352.0,88331.0,0.00046509]
[1769541393642,0.01549152,88350.0,88331.0,0.00046509]
[1769541393782,0.20594044,88349.0,88331.0,0.00046509]
[1769541395620,0.01099426,88348.0,88331.0,0.00046509]
[1769541395802,0.19494618,88347.0,88331.0,0.00046509]
[1769541397082,0.19494618,88347.0,88331.0,0.02417298]
[1769541397207,0.19494618,88352.0,88333.0,0.02370789]
[1769541397405,0.19494618,88352.0,88335.0,0.02370789]
[1769541397848,0.00078695,88355.0,88337.0,0.19930612]
[1769541398053,0.19494618,88354.0,88338.0,0.02370789]
[1769541399524,0.26965681,88350.0,88338.0,0.02370789]
[1769541399875,0.19494618,88354.0,88339.0,0.02370789]
[1769541400099,0.26965681,88350.0,88339.0,0.02370789]
[1769541400443,0.19494618,88354.0,88339.0,0.02370789]
[1769541401878,0.04988068,88359.0,88342.0,0.19922729]
[1769541402066,0.04988068,88359.0,88345.0,0.02400059]
[1769541402261,0.04988068,88359.0,88340.0,0.26965681]
[1769541402262,0.04988068,88359.0,88347.0,0.02109318]
[1769541402549,0.04988068,88361.0,88347.0,0.01447643]
[1769541402700,0.04988068,88361.0,88347.0,0.00924449]
[1769541403029,0.04988068,88361.0,88347.0,0.00191623]
[1769541403247,0.46460299,88360.0,88347.0,1e-08]
[1769541403400,0.46460299,88360.0,88341.0,0.02370789]
[1769541403604,0.26965681,88351.0,88341.0,0.02370789]
[1769541404003,0.19494618,88357.0,88341.0,0.01951445]
[1769541404232,0.19494618,88357.0,88341.0,0.0142722]
[1769541404405,0.19494618,88357.0,88341.0,0.01007804]
[1769541404609,0.21829766,88357.0,88341.0,0.00483489]
[1769541404925,0.19494618,88357.0,88339.0,0.19930612]
[1769541405127,0.02335148,88356.0,88339.0,0.19930612]
[1769541405308,0.26965681,88350.0,88336.0,0.02370789]
[1769541405508,0.26965681,88350.0,88332.0,0.19930612]
[1769541405707,0.19494618,88344.0,88331.0,0.00046509]
[1769541405912,0.02335148,88340.0,88331.0,0.00046509]
[1769541406113,0.02335148,88338.0,88322.0,0.19930612]
[1769541406336,0.02381662,88338.0,88322.0,0.19930612]
[1769541408527,0.02381662,88338.0,88312.0,0.0002301]
[1769541408528,0.02335148,88331.0,88313.0,0.22301401]
[1769541408656,0.00046514,88338.0,88315.0,0.19930612]
[1769541408863,0.00046514,88338.0,88318.0,0.02370789]
[1769541409058,0.00046514,88338.0,88320.0,0.02370789]
[1769541409314,0.00046514,88338.0,88322.0,0.02370789]
[1769541409516,0.00046514,88338.0,88326.0,0.02370789]
[1769541409742,0.00046514,88338.0,88328.0,0.02370789]
[1769541409944,0.11632,88349.0,88312.0,0.00896641]
[1769541409945,0.21829766,88354.0,88331.0,0.19930612]
[1769541410245,0.19494618,88351.0,88333.0,0.02370789]
[1769541410416,0.13738078,88350.0,88333.0,0.22082035]
[1769541410627,0.02413843,88350.0,88333.0,0.22082035]
[1769541410834,0.02335148,88356.0,88334.0,0.02142633]
[1769541411035,0.11402298,88355.0,88337.0,0.19816523]
[1769541411358,0.11323603,88354.0,88337.0,0.19246015]
[1769541411536,0.11402298,88353.0,88337.0,0.18789495]
[1769541411741,0.02335148,88355.0,88338.0,0.02370789]
[1769541412059,0.00078695,88357.0,88331.0,9.564e-05]
[1769541412060,0.00078695,88357.0,88341.0,0.19930612]
[1769541412265,0.11710695,88358.0,88341.0,0.19930612]
[1769541413056,0.11632,88358.0,88341.0,0.19930612]
[1769541414035,0.11632,88358.0,88342.0,0.02370789]
[1769541414236,0.11632,88358.0,88343.0,0.19930612]
[1769541414686,0.19523417,88356.0,88332.0,0.20922167]
[1769541414849,0.19523417,88354.0,88333.0,0.20922167]
[1769541415068,0.19523417,88354.0,88335.0,0.20922167]
[1769541415290,0.19523417,88354.0,88337.0,0.20922167]
[1769541415519,0.02327165,88355.0,88337.0,0.20922167]
[1769541416225,0.11632,88358.0,88340.0,0.02486531]
[1769541416430,0.11632,88358.0,88341.0,0.20922167]
[1769541416634,0.00101705,88361.0,88342.0,0.02486531]
[1769541416835,0.0002301,88361.0,88345.0,0.20922167]
[1769541417035,0.0002301,88361.0,88348.0,0.02486531]
[1769541417215,0.0002301,88361.0,88351.0,0.23408698]
[1769541417415,0.0002301,88361.0,88353.0,0.20922167]
[1769541417686,0.0002301,88361.0,88353.0,0.20808041]
[1769541418888,0.02327165,88370.0,88354.0,0.02486531]
[1769541419102,0.0272,88373.0,88357.0,0.20922167]
[1769541419269,0.0272,88373.0,88331.0,9.564e-05]
[1769541419270,0.01,88357.0,88338.0,0.11632]
[1769541419465,0.01,88357.0,88341.0,0.20922167]
[1769541419669,0.01,88357.0,88343.0,0.23408698]
[1769541420751,0.01,88357.0,88345.0,0.20922167]
[1769541422041,0.21850582,88356.0,88344.0,0.0001476]
[1769541422241,0.02327165,88356.0,88344.0,0.0001476]
[1769541423261,0.0001476,88344.0,88331.0,9.564e-05]
[1769541423620,0.19523417,88346.0,88331.0,9.564e-05]
[1769541424210,0.02327165,88347.0,88331.0,9.564e-05]
[1769541424725,0.02327165,88347.0,88331.0,0.20931731]
[1769541425994,0.02327165,88357.0,88333.0,0.20922167]
[1769541426150,0.26968898,88350.0,88333.0,0.23408698]
[1769541427202,0.02327165,88354.0,88334.0,0.02486531]
[1769541427405,0.00078695,88359.0,88337.0,0.20922167]
[1769541427606,0.0240586,88359.0,88339.0,0.23408698]
[1769541428013,0.02327165,88357.0,88339.0,0.23408698]
[1769541428893,0.02327165,88356.0,88339.0,0.20922167]
[1769541429106,0.19523417,88356.0,88339.0,0.20922167]
[1769541429473,0.02327165,88355.0,88339.0,0.20922167]
[1769541430172,0.02327165,88353.0,88332.0,0.20922167]
[1769541430578,0.02327165,88353.0,88334.0,0.20922167]
[1769541431009,0.02327165,88353.0,88337.0,0.02486531]
[1769541431212,0.02327165,88353.0,88338.0,0.20922167]
[1769541432823,0.19602112,88359.0,88338.0,0.20922167]
[1769541433038,0.21929277,88359.0,88340.0,0.20922167]
[1769541433242,0.02327165,88359.0,88341.0,0.23408698]
[1769541433851,0.00078695,88365.0,88341.0,0.20922167]
[1769541434025,0.00078695,88365.0,88343.0,0.20922167]
[1769541434026,0.11317754,88364.0,88343.0,0.20922167]
[1769541434168,0.0240586,88365.0,88331.0,9.564e-05]
[1769541434169,0.11317754,88363.0,88345.0,0.20922167]
[1769541434375,0.0240586,88365.0,88345.0,0.20350157]
[1769541434573,0.02327165,88363.0,88345.0,0.19777797]
[1769541434821,0.02327165,88363.0,88345.0,0.19319657]
[1769541435018,0.19523417,88374.0,88348.0,0.02486531]
[1769541435220,0.02327165,88372.0,88349.0,0.23408698]
[1769541435396,0.02327165,88370.0,88349.0,0.23408698]
[1769541435596,0.02327165,88368.0,88349.0,0.23408698]
[1769541435999,0.02327165,88368.0,88350.0,0.02486531]
[1769541436199,0.02327165,88368.0,88351.0,0.20922167]
[1769541437576,0.02327165,88368.0,88350.0,0.02486531]
[1769541437777,0.02327165,88368.0,88342.0,0.20922167]
[1769541437908,0.02327165,88368.0,88339.0,0.11632]
[1769541437909,0.02327165,88368.0,88345.0,0.02412144]
[1769541438110,0.02327165,88368.0,88346.0,0.20922167]
[1769541439993,0.19523417,88368.0,88346.0,0.20922167]
[1769541440266,0.02327165,88367.0,88346.0,0.20922167]
[1769541440804,0.19523417,88367.0,88346.0,0.20922167]
[1769541441037,0.02327165,88366.0,88346.0,0.20922167]
[1769541441244,0.02327165,88364.0,88346.0,0.20922167]
[1769541441436,0.02327165,88363.0,88346.0,0.20922167]
[1769541441630,0.02327165,88362.0,88346.0,0.20922167]
[1769541442685,0.02327165,88362.0,88340.0,0.02412144]
[1769541442885,0.27619061,88375.0,88338.0,0.045]
[1769541442886,0.02320491,88358.0,88338.0,0.045]
[1769541443085,0.02320491,88357.0,88339.0,0.20533757]
[1769541443751,0.02399186,88357.0,88339.0,0.20533757]
[1769541444126,0.02399186,88357.0,88338.0,0.045]
[1769541444353,0.02448069,88353.0,88338.0,0.045]
[1769541444508,0.19414203,88350.0,88338.0,0.045]
[1769541444728,0.02448069,88349.0,88338.0,0.045]
[1769541445769,0.19414203,88343.0,88331.0,9.564e-05]
[1769541445970,0.02448069,88340.0,88331.0,9.564e-05]
[1769541446656,0.19414203,88339.0,88331.0,9.564e-05]
[1769541446870,0.02448069,88338.0,88331.0,9.564e-05]
[1769541447083,0.02448069,88338.0,88303.0,0.0272]
[1769541447084,0.04988068,88346.0,88316.0,0.0002326]
[1769541447257,0.02448069,88327.0,88316.0,0.00069774]
[1769541447486,0.19414203,88325.0,88316.0,0.00069774]
[1769541447659,0.02448069,88324.0,88316.0,0.00069774]
[1769541448496,0.19414203,88322.0,88316.0,0.00069774]
[1769541448803,0.02448069,88320.0,88316.0,0.00069774]
[1769541449564,0.02448069,88320.0,88305.0,0.18975021]
[1769541449759,0.02494561,88320.0,88305.0,0.18975021]
[1769541450850,0.02494561,88320.0,88306.0,0.00113233]
[1769541451779,0.02494561,88320.0,88306.0,0.1990848]
[1769541453067,0.00046492,88320.0,88306.0,0.1990848]
[1769541453272,0.02448069,88344.0,88310.0,0.19795247]
[1769541453433,0.02448069,88342.0,88313.0,0.02412224]
[1769541453626,0.02448069,88340.0,88316.0,0.19795247]
[1769541453824,0.02448069,88340.0,88320.0,0.19795247]
[1769541454787,0.02448069,88340.0,88321.0,0.02479347]
[1769541455012,0.02448069,88340.0,88322.0,0.19363739]
[1769541455315,0.02448069,88340.0,88323.0,0.02479347]
[1769541455449,0.02448069,88340.0,88324.0,0.22274594]
[1769541455819,0.19414203,88339.0,88302.0,0.05685609]
[1769541455946,0.02448069,88338.0,88305.0,0.19795247]
[1769541456160,0.02448069,88338.0,88308.0,0.02479347]
[1769541456352,0.02448069,88338.0,88310.0,0.02479347]
[1769541456647,0.02448069,88338.0,88313.0,0.19795247]
[1769541456815,0.02448069,88338.0,88315.0,0.19795247]
[1769541457048,0.19414203,88337.0,88316.0,0.02552311]
[1769541457316,0.00078695,88342.0,88316.0,0.22450813]
[1769541457317,0.02448069,88335.0,88316.0,0.22450813]
[1769541457519,0.02448069,88335.0,88316.0,0.22274594]
[1769541464986,0.00010529,88344.0,88320.0,0.3370627]
[1769541465187,0.00010529,88344.0,88324.0,0.02479347]
[1769541465411,0.00078695,88357.0,88328.0,0.02479347]
[1769541465611,0.00078695,88357.0,88331.0,0.19795247]
[1769541465816,0.06235248,88367.0,88332.0,0.19795247]
[1769541465986,0.06235248,88367.0,88330.0,0.39366815]
[1769541465987,0.06313943,88367.0,88335.0,0.02479347]
[1769541466188,0.00101955,88365.0,88339.0,0.02479347]
[1769541466503,0.00101955,88365.0,88344.0,0.19795247]
[1769541466707,0.00101955,88365.0,88345.0,0.02479347]
[1769541466908,0.00101955,88365.0,88348.0,0.19795247]
[1769541467112,0.0003271,88365.0,88348.0,0.22274594]
[1769541468389,0.19414203,88364.0,88343.0,0.19795247]